[Event "84th Armenian-HL-ch 2024"]
[Site "Yerevan"]
[Date "2024.01.20"]
[Round "9.2"]
[White "Hovhannisyan, Robert"]
[Black "Davtyan, Artur"]
[Result "1-0"]
[ECO "C85"]
[WhiteElo "2611"]
[BlackElo "2477"]
[Annotator "TA"]
[PlyCount "93"]
[EventDate "2024.01.11"]
[EventType "tourn"]
[EventCountry "ARM"]
[SourceTitle "playchess.com"]
[Source "ChessBase"]
[SourceQuality "1"]
[TimeControl "40/5400+30:1800+30"]

{[%evp 15,93,-31,-24,-21,0,0,0,0,0,5,0,7,6,7,40,41,41,34,41,36,28,28,62,71,67,94,179,172,168,43,70,36,37,19,18,0,0,0,0,0,0,-8,-8,-8,0,0,36,36,36,37,37,37,37,37,37,37,37,22,22,22,1294,1273,1280,1283,1272,1245,1114,1054,1724,1676,1477,1255,2062,2015,29952,29952,12804,10090,5501,4898]} 1. e4 {[%emt 0:00:03]} e5 {[%emt 0:06:19]} 2. Nf3 {[%emt 0:00:11]} Nc6 {[%emt 0:00:06]} 3. Bb5 {[%emt 0:00:14]} a6 {[%emt 0:00:16]} 4. Ba4 {[%emt 0:00:06]} Nf6 {[%emt 0:00:07]} 5. O-O {[%emt 0:00:21]} Be7 {[%emt 0:00:06]} 6. Bxc6 {[%emt 0:00:25]} dxc6 {[%emt 0:00:05]} 7. Nc3 {[%emt 0:00:06]} Bg4 {[%emt 0:16:43][%cal Bc8g4,Bg4h5,Bh5g6][%mdl 32]} 8. h3 {[%emt 0:00:12]} Bh5 $1 {[%emt 0:06:26]} 9. Qe2 $1 {[%emt 0:00:08][%mdl 4] outshines the older 9.g4. C85: Closed Ruy Lopez: Deferred Exchange Variation.} Nd7 {[%emt 0:02:05]} 10. g4 {[%emt 0:00:25]} Bg6 {[%emt 0:00:06]} 11. d4 {[%emt 0:00:04] The position is equal.} exd4 {[%emt 0:03:23]} 12. Nxd4 {[%emt 0:00:11]} h5 {[%emt 0:00:10]} 13. Nf5 {[%emt 0:25:10]} hxg4 {[%emt 0:00:12]} 14. hxg4 {[%emt 0:00:17] Threatening Bf4.} Bxf5 {[%emt 0:18:26]} 15. exf5 {[%emt 0:00:41] [#]} Kf8 $146 {[%emt 0:00:08]} ({Predecessor:} 15... O-O 16. Rd1 Re8 17. Qd3 Bd6 18. Qh3 g6 19. Kg2 Qf6 20. Rh1 Qg7 21. fxg6 fxg6 {1-0 Gerola,G (2476)-Sampieri,M (2439) ICCF GMN/002 email 2006}) 16. Bf4 {[%emt 0:03:38]} Bd6 {[%emt 0:02:25]} 17. Bxd6+ {[%emt 0:01:42]} cxd6 {[%emt 0:00:01]} 18. Kg2 $1 {[%emt 0:00:11]} Kg8 {[%emt 0:10:54]} (18... Qh4 $2 19. Rh1 Re8 20. Rxh4 $18) 19. Rh1 {[%emt 0:05:04] Active counter play!} Rxh1 {[%emt 0:00:12]} 20. Rxh1 {[%emt 0:00:05] Threatens to win with Qd3.} Qg5 {[%emt 0:00:07] [#]} (20... Qf6 $16 {is a better defense.}) 21. Kg3 $1 $18 {[%emt 0:03:30] Black must now prevent f4.} Qd8 {[%emt 0:16:28]} 22. f3 {[%emt 0:08:47]} ({Only move:} 22. f4 $18 {Qh2 would be deadly.} Qe8 23. Qf3 (23. Qh2 Qe3+ 24. Kg2 Qd2+ 25. Kg3 Qxh2+ 26. Rxh2 Re8 $11)) 22... Qe8 $1 $14 {[%emt 0:01:28]} 23. Ne4 {[%emt 0:14:54] Hoping for Qh2.} (23. Qh2 Qe5+ 24. f4 Qe3+ 25. Kg2 Qd2+ 26. Kf3 Qxh2 27. Rxh2 d5 $11) 23... f6 {[%emt 0:10:46]} 24. c4 {[%emt 0:04:52]} Nc5 {[%emt 0:00:17][%cal Bd7c5,Bc5d3,Bd3e1][%mdl 32]} 25. Nc3 {[%emt 0:02:46][%cal Be4c3,Bc3e2,Be2d4,Bd4c6][%mdl 32]} (25. Kf2 {simplifies} Nxe4+ 26. Qxe4 Qd7 27. Rd1) 25... b5 {[%emt 0:02:23]} 26. b4 {[%emt 0:07:09]} ({Of course not} 26. Qh2 Qe5+ 27. Kh4 (27. f4 $2 Qe3+ 28. Kg2 Nd3 $19) 27... Qxh2+ 28. Rxh2 bxc4 $17) 26... Qxe2 {[%emt 0:00:31]} 27. Nxe2 $11 {[%emt 0:00:03][%mdl 4096] Endgame KRN-KRN} Nd3 {[%emt 0:00:05]} 28. c5 {[%emt 0:00:21]} dxc5 {[%emt 0:01:54]} 29. bxc5 {[%emt 0:00:10]} Re8 {[%emt 0:01:26]} 30. Nd4 {[%emt 0:00:36]} Re1 {[%emt 0:01:23]} 31. Rxe1 {[%emt 0:01:22]} Nxe1 $14 {[%emt 0:00:01] KN-KN} 32. Kf2 {[%emt 0:00:15]} Nd3+ {[%emt 0:00:01]} 33. Ke3 {[%emt 0:00:05]} Nxc5 {[%emt 0:01:06]} 34. Nxc6 {[%emt 0:00:05]} Kf7 {[%emt 0:00:14]} 35. Kd4 {[%emt 0:00:24]} Na4 {[%emt 0:00:54]} 36. f4 {[%emt 0:10:28]} Ke8 {[%emt 0:00:30]} 37. g5 {[%emt 0:01:44]} Kd7 $2 {[%emt 0:00:43][%mdl 8192] Black cannot hold the game after this.} (37... Kf7 $11) 38. Nb8+ $18 {[%emt 0:00:58]} Kd6 {[%emt 0:00:28]} 39. Nxa6 {[%emt 0:00:06]} Nb6 {[%emt 0:00:12]} 40. Nb4 {[%emt 0:00:00]} Nd7 {[%emt 0:00:00] [#]} 41. Nd5 $1 {[%emt 0:06:10]} Kc6 {[%emt 0:04:34]} 42. a3 {[%emt 0:01:18]} Kd6 {[%emt 0:03:00]} 43. Nc3 {[%emt 0:00:37]} Kc6 {[%emt 0:00:08]} 44. Ne4 {[%emt 0:00:31]} Nb6 {[%emt 0:03:15]} 45. gxf6 {[%emt 0:02:55]} gxf6 {[%emt 0:00:06]} 46. Nxf6 {[%emt 0:00:04]} Nc4 {[%emt 0:00:03]} 47. Nd5 {[%emt 0:34:36] Weighted Error Value: White=0.12 (very precise) /Black=0.30} 1-0

[Event "84th Armenian-HL-ch 2024"]
[Site "Yerevan"]
[Date "2024.01.20"]
[Round "9.3"]
[White "Harutyunyan, Tigran K."]
[Black "Ter-Sahakyan, Samvel"]
[Result "1-0"]
[ECO "A08"]
[WhiteElo "2523"]
[BlackElo "2649"]
[Annotator "TA"]
[PlyCount "86"]
[EventDate "2024.01.11"]
[EventType "tourn"]
[EventCountry "ARM"]
[SourceTitle "playchess.com"]
[Source "ChessBase"]
[SourceQuality "1"]
[TimeControl "40/5400+30:1800+30"]

{[%evp 9,86,6,5,-18,0,0,0,-21,-27,-22,-26,-26,-30,-25,-12,-33,-37,-27,-12,-14,-6,0,0,0,0,0,0,-25,0,-10,0,-20,-18,-26,-22,-48,-18,-61,-64,-68,-32,-35,37,44,31,39,134,134,130,129,181,135,169,143,173,166,202,194,212,207,213,153,275,107,94,95,100,100,104,53,104,82,119,118,123,95,162,124,1259]} 1. Nf3 {[%emt 0:00:04]} d5 {[%emt 0:00:09]} 2. g3 {[%emt 0:00:17]} c5 {[%emt 0:02:36]} 3. Bg2 {[%emt 0:00:41]} Nf6 {[%emt 0:00:07]} 4. O-O {[%emt 0:00:34]} e6 {[%emt 0:00:06]} 5. d3 {[%emt 0:01:35]} Nc6 {[%emt 0:03:09]} 6. Bf4 {[%emt 0:04:39][%cal Oe2e4] A08: King's Indian Attack.} Be7 {[%emt 0:02:13]} 7. e4 {[%emt 0:03:02]} O-O {[%emt 0:03:52]} 8. e5 {[%emt 0:07:30] The position is equal.} Nd7 {[%emt 0:01:05][%cal Bf6d7,Bd7b6,Bb6d5,Bd5e7,Be7f5][%mdl 32]} 9. h4 {[%emt 0:00:48]} b5 {[%emt 0:13:31]} 10. Re1 {[%emt 0:01:07]} Bb7 {[%emt 0:03:33]} 11. Nbd2 $1 {[%emt 0:05:36]} Qc7 {[%emt 0:00:58] [#]} 12. c4 $146 {[%emt 0:03:45] cxd5 is the strong threat.} ({Predecessor:} 12. Qe2 Rfc8 13. h5 h6 14. Nf1 a5 15. N1h2 a4 16. a3 b4 17. Ng4 Bf8 18. Qd2 {½-½ Kuznetsova,M (1964)-Karmanova,O (2053) RUS-ch Higher League (Women) 71st 2021 (5)}) 12... bxc4 {[%emt 0:12:22]} 13. dxc4 {[%emt 0:01:12]} Nb6 {[%emt 0:00:03]} (13... Nb4 $5 {[%cal Rb4d3]}) 14. cxd5 $1 {[%emt 0:02:48]} Nxd5 {[%emt 0:00:18]} 15. Bg5 {[%emt 0:00:55]} Rfd8 {[%emt 0:03:47]} 16. a3 {[%emt 0:03:10] Against Ncb4} h6 {[%emt 0:06:08]} 17. Bxe7 {[%emt 0:00:26]} Ndxe7 {[%emt 0:02:12]} 18. Qc2 {[%emt 0:04:05]} Rd5 {[%emt 0:02:15]} 19. Rac1 {[%emt 0:07:03]} Rb8 {[%emt 0:16:22][%cal Rc6e5]} 20. Nc4 {[%emt 0:12:25]} Nf5 {[%emt 0:03:29]} 21. Nfd2 {[%emt 0:07:22][%cal Bf3d2,Bd2e4,Be4c5][%mdl 32]} Ncd4 {[%emt 0:00:08]} 22. Qb1 {[%emt 0:02:14]} Rd7 {[%emt 0:04:01]} (22... Ba6 $5) 23. Ne4 {[%emt 0:00:16]} Bd5 {[%emt 0:02:10]} 24. Ne3 {[%emt 0:12:13]} Nxe3 {[%emt 0:10:21]} (24... Qxe5 25. Nxc5 (25. Rxc5 Rxb2 26. Qa1 Qb8 $17) 25... Rd6 26. Nxd5 Ne2+ 27. Rxe2 Qxe2 28. b3 $16) 25. Rxe3 {[%emt 0:00:23]} Nb3 {[%emt 0:00:31] [#]} (25... Qxe5 $2 26. Nxc5 Qd6 27. Nxd7 Qxd7 28. Bxd5 exd5 29. Qd3 $18) (25... Bxe4 $15 26. Bxe4 Nb3) 26. Rxb3 $1 $14 {[%emt 0:03:02]} Bxb3 {[%emt 0:03:35]} (26... Rxb3 27. Nxc5 (27. Rxc5 $2 Qb8 $19) 27... Rb5 28. Nxd7 Qxd7 29. Rd1 $16) 27. Nxc5 {[%emt 0:00:12]} Rdd8 {[%emt 0:01:57]} (27... Rd1+ $1 $14 28. Rxd1 Qxc5) 28. Nxb3 $16 {[%emt 0:01:30][%mdl 64] Discovered Attack} Qxe5 {[%emt 0:00:08]} 29. Rc3 {[%emt 0:00:49]} a5 {[%emt 0:00:48]} (29... Rbc8 $16 {was necessary.}) 30. Re3 {[%emt 0:04:10]} ({Better is} 30. Qc1 $18) 30... Qf6 {[%emt 0:01:12]} 31. a4 $1 {[%emt 0:02:23]} (31. Nxa5 $2 Rxb2 32. Qf1 Rd1 $19) 31... Rb4 {[%emt 0:00:13] [#]} 32. Bc6 $1 {[%emt 0:00:20]} (32. Nxa5 $2 Rxb2 33. Qf1 Rd1 $19) 32... g5 {[%emt 0:00:52] [#]} 33. hxg5 {[%emt 0:00:12]} (33. Nxa5 $2 Rxb2 34. Qf1 Rd1 $19) 33... hxg5 {[%emt 0:00:03]} 34. Qc2 {[%emt 0:00:28]} (34. Nxa5 $2 Rxb2 35. Qf1 Rd1 $19) 34... Kg7 {[%emt 0:01:33]} 35. Kg2 {[%emt 0:01:44]} (35. Nxa5 $2 {perishes.} Rxb2 36. Qc3 Rd1+ 37. Kh2 Rxf2+ 38. Bg2 Qxc3 39. Rxc3 Rdd2 $19) 35... Rh8 {[%emt 0:00:38]} (35... g4 $16 36. Rc3 (36. Nxa5 $2 {loses.} Rxb2 $19) 36... Rdb8) 36. Qc3 $2 {[%emt 0:01:23]} ({Inferior is} 36. Nxa5 Rxb2 37. Qc3 Rxf2+ 38. Kg1 Qxc3 39. Rxc3 Ra2 $15) (36. Qc5 $18 {is more deadly.}) 36... Qxc3 {[%emt 0:00:08]} 37. Rxc3 {[%emt 0:00:01]} Rc8 {[%emt 0:00:26][%cal Oc8c6]} 38. Nxa5 {[%emt 0:00:44] aiming for b3.} Rxb2 {[%emt 0:00:04]} 39. Rf3 {[%emt 0:03:28]} (39. Rc5 $16) 39... Ra2 {[%emt 0:01:53]} (39... g4 $14 40. Re3 Rb4) 40. Bb5 {[%emt 0:00:00]} Rc1 {[%emt 0:00:00]} 41. Nb3 {[%emt 0:02:17]} Rb1 {[%emt 0:06:47]} 42. g4 {[%emt 0:01:56]} Rbb2 {[%emt 0:04:55]} (42... Re1 $16 43. Nc5 Rc2) 43. Nc1 {[%emt 0:03:05]} Rb4 $2 {[%emt 0:02:52][%mdl 8192] A cool game by Harutyunyan.   Weighted Error Value: White=0.21 (precise) /Black=0.24 (precise)} 1-0

[Event "84th Armenian-HL-ch 2024"]
[Site "Yerevan"]
[Date "2024.01.20"]
[Round "9.4"]
[White "Gharibyan, Mamikon"]
[Black "Petrosyan, Manuel"]
[Result "0-1"]
[ECO "C84"]
[WhiteElo "2504"]
[BlackElo "2627"]
[Annotator "TA"]
[PlyCount "76"]
[EventDate "2024.01.11"]
[EventType "tourn"]
[EventCountry "ARM"]
[SourceTitle "playchess.com"]
[Source "ChessBase"]
[SourceQuality "1"]
[TimeControl "40/5400+30:1800+30"]

{[%evp 13,76,14,15,0,26,23,20,7,14,-14,-12,-24,-1,-7,0,-4,0,0,0,0,0,0,0,0,0,0,0,0,0,0,0,0,0,0,0,0,0,0,0,0,0,0,0,0,5,5,3,0,4,0,11,11,11,18,96,85,94,8,15,8,14,-118,-108,-29996,-183]} 1. e4 {[%emt 0:00:05]} e5 {[%emt 0:02:02]} 2. Nf3 {[%emt 0:00:14]} Nc6 {[%emt 0:00:06]} 3. Bb5 {[%emt 0:00:06]} a6 {[%emt 0:00:19]} 4. Ba4 {[%emt 0:00:07]} Nf6 {[%emt 0:00:06]} 5. O-O {[%emt 0:00:13]} Be7 {[%emt 0:00:56]} 6. d3 {[%emt 0:01:34]} b5 {[%emt 0:00:21]} 7. Bb3 {[%emt 0:00:06]} d6 {[%emt 0:00:12]} 8. Bd2 {[%emt 0:02:09] C84: Closed Ruy Lopez: Unusual White 6th moves.} O-O {[%emt 0:04:00]} 9. h3 {[%emt 0:09:39]} Rb8 {[%emt 0:06:24] [#]} 10. a4 $146 {[%emt 0:02:46] The position is equal.} ({Predecessor:} 10. Re1 Re8 11. a3 h6 12. Nc3 Bf8 13. Nd5 Nxd5 14. Bxd5 Ne7 15. Bb3 c5 16. a4 {1-0 Nihal,S (2688)-Salem,A (2639) Sharjah Alef Blitz 2023 (1)}) 10... b4 {[%emt 0:03:22]} 11. Be3 {[%emt 0:20:40]} Na5 {[%emt 0:03:48]} 12. Ba2 {[%emt 0:00:29] [#]} b3 $1 {[%emt 0:01:56]} 13. Bxb3 {[%emt 0:06:50]} Nxb3 {[%emt 0:00:07]} 14. cxb3 {[%emt 0:00:05]} Be6 {[%emt 0:05:56]} 15. Nbd2 {[%emt 0:02:05]} c5 {[%emt 0:00:29]} 16. Ng5 {[%emt 0:04:48]} Bc8 {[%emt 0:07:42]} 17. f4 {[%emt 0:06:48]} exf4 {[%emt 0:01:45]} 18. Bxf4 {[%emt 0:00:23]} ({Of course not} 18. Rxf4 h6 19. Ngf3 Nh5 $17) 18... Rb7 {[%emt 0:01:06]} (18... h6 $5 19. Ngf3 $8 Be6 $11) 19. Ngf3 {[%emt 0:04:32]} Be6 {[%emt 0:08:50]} 20. Ng5 {[%emt 0:05:09]} Bc8 {[%emt 0:02:47]} 21. Ngf3 {[%emt 0:00:34]} h6 {[%emt 0:00:08]} 22. Qc2 {[%emt 0:05:41]} Be6 {[%emt 0:04:51]} 23. Rac1 {[%emt 0:12:09]} d5 {[%emt 0:03:33]} 24. e5 {[%emt 0:01:14]} Nd7 {[%emt 0:02:00]} 25. d4 {[%emt 0:03:24]} Rb4 {[%emt 0:06:39]} 26. Be3 {[%emt 0:03:43][%cal Rd4c5]} c4 {[%emt 0:01:51]} 27. bxc4 {[%emt 0:01:05]} dxc4 {[%emt 0:00:12]} 28. Ne4 $36 {[%emt 0:01:34][%mdl 2048] Black is under pressure.} Qb6 {[%emt 0:02:13]} 29. Rf2 {[%emt 0:01:20][%cal Oa4a5]} Rb8 {[%emt 0:13:00]} 30. Nc3 {[%emt 0:00:55]} Rxb2 {[%emt 0:01:48]} 31. Qe4 {[%emt 0:01:25]} (31. Qxb2 {simplifies} Qxb2 32. Rxb2 Rxb2 33. d5) 31... Rxf2 {[%emt 0:04:09]} 32. Bxf2 {[%emt 0:03:12] With the idea Rb1.} Qb2 {[%emt 0:00:06]} 33. Rc2 {[%emt 0:00:36]} Qa1+ {[%emt 0:00:05] [#]} (33... Qa3 $1 $11) 34. Kh2 $1 $16 {[%emt 0:00:22] d5 is the strong threat.} g6 {[%emt 0:00:04]} 35. Nd5 {[%emt 0:01:15]} ({White should try} 35. Qc6 $16) 35... Bf8 $11 {[%emt 0:01:22] Threatens to win with ...Bf5.} 36. Ne3 {[%emt 0:00:37] Dodges Bf5. aiming for d5. Excellent horsemanship.} Rb1 $1 {[%emt 0:03:55]} 37. d5 {[%emt 0:00:31]} ({Reject} 37. Nxc4 Bf5 38. Qd5 (38. Qe2 $2 Bxc2 39. Qxc2 Rc1 $17) 38... Bxc2 $17) (37. Bg1 $11 {keeps the balance.}) 37... Nf6 $17 {[%emt 0:00:32][%mdl 64] Deflection. Black is more active.} 38. Qxc4 $2 {[%emt 0:00:33][%mdl 8192]} (38. exf6 $17 Bd6+ 39. Ne5 Bxe5+ 40. g3) 38... Rh1+ {[%emt 0:00:13] A cool game by Petrosyan.   Weighted Error Value: White=0.29 (precise) /Black=0.05 (flawless)} 0-1

[Event "84th Armenian-HL-ch 2024"]
[Site "Yerevan"]
[Date "2024.01.20"]
[Round "9.5"]
[White "Piliposyan, Robert"]
[Black "Chaqryan, Erik"]
[Result "1/2-1/2"]
[ECO "B11"]
[WhiteElo "2367"]
[BlackElo "2308"]
[Annotator "RC"]
[PlyCount "55"]
[EventDate "2024.01.11"]
[EventType "tourn"]
[EventCountry "ARM"]
[SourceTitle "playchess.com"]
[Source "ChessBase"]
[SourceQuality "1"]
[TimeControl "40/5400+30:1800+30"]

1. e4 {[%emt 0:00:09]} c6 {[%emt 0:01:02]} 2. Nc3 {[%emt 0:00:14]} d5 {[%emt 0:00:11]} 3. Nf3 {[%emt 0:00:05]} dxe4 {[%emt 0:01:00]} 4. Nxe4 {[%emt 0:00:06]} Nf6 {[%emt 0:00:04]} 5. Qe2 {[%emt 0:00:08]} Nxe4 {[%emt 0:00:20]} 6. Qxe4 {[%emt 0:00:05]} Qd5 {[%emt 0:00:06]} 7. Qh4 {[%emt 0:00:19]} Qe6+ {[%emt 0:01:25]} 8. Be2 {[%emt 0:00:16]} Qg6 {[%emt 0:00:13]} 9. O-O {[%emt 0:07:08]} Qg4 {[%emt 0:00:09]} 10. d4 {[%emt 0:02:48]} Qxh4 {[%emt 0:02:14]} 11. Nxh4 {[%emt 0:00:12]} g6 {[%emt 0:01:41]} 12. c3 {[%emt 0:01:42]} Bg7 {[%emt 0:06:45]} 13. Bc4 {[%emt 0:01:49]} Nd7 {[%emt 0:06:30]} 14. Re1 {[%emt 0:00:39]} a5 {[%emt 0:07:14]} 15. a4 {[%emt 0:00:32]} Nb6 {[%emt 0:02:42]} 16. Bb3 {[%emt 0:01:38]} Nd5 {[%emt 0:04:12]} 17. Nf3 {[%emt 0:00:32]} Bf5 {[%emt 0:06:58]} 18. Bg5 {[%emt 0:04:00]} e6 {[%emt 0:02:56]} 19. Nh4 {[%emt 0:03:53]} O-O {[%emt 0:03:55]} 20. Nxf5 {[%emt 0:00:23]} gxf5 {[%emt 0:00:07]} 21. h3 {[%emt 0:00:52]} Bf6 {[%emt 0:05:37]} 22. Bh6 {[%emt 0:01:25]} Rfd8 {[%emt 0:00:38]} 23. g4 {[%emt 0:04:08]} fxg4 {[%emt 0:00:05]} 24. hxg4 {[%emt 0:00:04]} b5 {[%emt 0:00:05]} 25. axb5 {[%emt 0:09:13]} cxb5 {[%emt 0:00:09]} 26. Bd2 {[%emt 0:00:22]} a4 {[%emt 0:11:49]} 27. Bc2 {[%emt 0:02:21]} Rac8 {[%emt 0:18:27]} 28. Be4 {[%emt 0:29:19]} 1/2-1/2